bitfinex/quotes_ETHUSD_20250604
["timestamp","ask_amount","ask_price","bid_price","bid_amount"]
[1748996167527,0.02,2597.9,2597.6,8.0]
[1748996167738,0.02,2597.9,2597.7,1.666]
[1748996168712,0.02,2597.9,2597.7,2.04322854]
[1748996171468,0.02,2597.9,2597.8,1.665]
[1748996172273,0.02,2597.9,2597.4,8.0]
[1748996172488,0.02,2597.9,2597.5,1.665]
[1748996172489,0.7755,2597.8,2597.5,1.665]
[1748996173184,0.02,2597.9,2597.5,1.665]
[1748996175706,0.02,2597.9,2597.6,1.665]
[1748996175902,0.7755,2597.8,2597.6,1.665]
[1748996176615,0.7755,2597.8,2597.4,5.8048064]
[1748996176822,0.7755,2597.8,2597.7,1.665]
[1748996177115,0.7755,2597.8,2597.4,5.8048064]
[1748996177343,0.7755,2597.8,2597.7,1.665]
[1748996179929,0.02,2597.9,2597.7,1.665]
[1748996180102,0.02,2597.9,2597.7,7.09057165]
[1748996181547,0.02,2597.9,2597.4,5.8048064]
[1748996181744,0.8222,2597.8,2597.4,1.665]
[1748996181946,0.8222,2597.8,2597.0,8.0]
[1748996181947,0.8222,2597.8,2597.1,0.38792124]
[1748996182147,0.8222,2597.6,2596.9,1.665]
[1748996182316,0.55,2597.5,2596.9,1.665]
[1748996182523,0.8222,2597.4,2596.9,1.665]
[1748996183259,0.8222,2597.4,2596.8,1.666]
[1748996184247,0.8222,2597.4,2596.8,2.43130111]
[1748996184423,0.8222,2597.4,2596.8,1.666]
[1748996190953,0.8222,2597.4,2596.9,1.666]
[1748996194025,0.7946,2597.2,2596.9,1.666]
[1748996197413,0.7979,2597.4,2596.9,1.666]
[1748996199129,0.7979,2597.4,2596.6,8.0]
[1748996199325,0.7979,2597.4,2596.7,1.666]
[1748996201767,0.7979,2597.4,2596.8,5.42557165]
[1748996203762,0.7979,2597.4,2596.9,1.666]
[1748996209461,0.7979,2597.4,2596.6,8.0]
[1748996209760,0.7979,2597.4,2597.0,1.666]
[1748996220724,0.7979,2597.4,2597.0,4.27214704]
[1748996221583,0.7979,2597.4,2596.9,8.0]
[1748996221779,0.7979,2597.4,2597.0,1.666]
[1748996227038,0.7714,2597.8,2597.0,4.27214704]
[1748996227337,0.7714,2597.8,2597.1,8.0]
[1748996239546,0.7714,2597.8,2597.0,1.666]
[1748996239761,0.7714,2597.8,2597.0,9.666]
[1748996240277,0.7714,2597.8,2596.8,8.0]
[1748996240552,0.7714,2597.8,2597.1,1.666]
[1748996240753,0.7693,2597.6,2597.1,1.666]
[1748996245071,0.7855,2597.4,2597.1,1.666]
[1748996247610,0.7855,2597.4,2597.0,1.665]
[1748996247730,0.7855,2597.4,2596.9,1.665]
[1748996249957,0.7855,2597.4,2597.0,8.0]
[1748996250533,0.7855,2597.4,2597.1,1.665]
[1748996250741,0.8191,2597.8,2597.2,8.0]
[1748996253176,0.8191,2597.8,2597.1,1.665]
[1748996253675,0.55,2597.7,2597.2,1.665]
[1748996253864,0.7553,2597.6,2597.2,1.665]
[1748996270153,0.02,2597.9,2597.3,8.0]
[1748996270154,0.7752,2597.8,2597.3,8.0]
[1748996273289,0.7752,2597.8,2597.3,2.60510092]
[1748996274862,0.7752,2597.8,2597.3,2.42634393]
[1748996277101,0.7752,2597.8,2597.3,10.42634393]
[1748996278829,0.7752,2597.8,2597.2,8.0]
[1748996279077,0.7752,2597.8,2597.4,1.664]
[1748996279402,0.7752,2597.8,2597.5,1.664]
[1748996281309,0.02,2597.9,2597.5,1.664]
[1748996281941,0.02,2597.9,2597.7,2.60510092]
[1748996282104,0.02,2597.9,2597.8,8.26051009]
[1748996282857,0.02,2597.9,2597.8,8.65276195]
[1748996283327,0.02,2598.9,2597.8,8.65276195]
[1748996283328,0.801,2598.8,2597.8,8.65276195]
[1748996283626,0.801,2598.8,2598.1,8.0]
[1748996283826,0.801,2598.8,2598.2,1.664]
[1748996284428,0.801,2598.8,2597.9,8.0]
[1748996284627,2.60510092,2598.5,2598.0,1.664]
[1748996284849,0.801,2598.3,2598.0,1.664]
[1748996291544,0.57,2598.9,2598.0,9.664]
[1748996291545,0.8274,2598.8,2598.0,9.664]
[1748996291772,0.8274,2598.8,2598.2,8.0]
[1748996295987,0.8274,2598.8,2598.3,2.60510092]
[1748996296841,0.8274,2598.8,2598.3,3.19913042]
[1748996297042,0.8274,2598.8,2598.4,0.31991304]
[1748996298163,0.8274,2598.8,2598.2,0.57715599]
[1748996298357,0.8274,2598.8,2598.3,1.663]
[1748996299903,0.8274,2598.8,2597.8,0.37783083]
[1748996300105,0.8274,2598.8,2598.2,1.663]
[1748996300710,0.8274,2598.8,2598.2,4.26810092]
[1748996301899,0.8274,2598.8,2598.3,8.0]
[1748996305208,0.8274,2598.8,2598.3,8.37719021]
[1748996306660,0.8274,2598.8,2598.3,0.37719021]
[1748996306960,0.8274,2598.8,2598.2,1.663]
[1748996307160,0.8274,2598.8,2598.2,9.663]
[1748996308102,0.8274,2598.8,2598.2,10.04705788]
[1748996308721,0.8274,2598.8,2598.2,0.38405788]
[1748996309024,0.8274,2598.8,2598.2,1.662]
[1748996310783,0.8274,2598.8,2598.2,2.0435972]
[1748996335168,0.8274,2598.8,2598.3,1.662]
[1748996337173,0.02,2598.9,2598.6,2.60510092]
[1748996337608,0.02,2598.9,2598.8,10.60510092]
[1748996338352,0.02,2598.9,2598.8,8.0]
[1748996338785,0.796,2598.9,2598.8,8.0]
[1748996339208,0.796,2598.9,2598.8,1.66]
[1748996344262,0.796,2598.9,2598.7,1.659]
[1748996344464,0.796,2598.9,2598.2,0.3815972]
[1748996344671,0.796,2598.9,2598.3,1.659]
[1748996344901,0.7997,2598.8,2598.3,1.659]
[1748996347165,0.7997,2598.8,2598.4,1.659]
[1748996360801,0.7997,2598.8,2598.1,2.99104559]
[1748996360802,0.7997,2598.8,2598.2,1.66]
[1748996362454,0.02,2598.9,2598.5,2.60510092]
[1748996362754,0.02,2598.9,2598.7,2.60510092]
[1748996363041,0.02,2598.9,2598.8,1.92051009]
[1748996367959,0.02,2598.9,2598.8,9.92051009]
[1748996372376,0.02,2598.9,2598.8,10.17051009]
[1748996372939,0.02,2598.9,2598.8,2.17051009]
[1748996373153,0.02,2598.9,2598.8,4.77561101]
[1748996373459,0.02,2598.9,2598.8,12.77561101]
[1748996375640,0.02,2598.9,2598.8,12.52561101]
[1748996380477,0.02,2598.9,2598.8,10.86561101]
[1748996380675,0.02,2598.9,2598.8,12.52261101]
[1748996385282,0.02,2598.9,2598.8,3.27242807]
[1748996385489,0.02,2598.9,2598.8,2.76763705]
[1748996387271,0.02,2598.9,2598.8,10.76763705]
[1748996387769,0.02,2598.9,2598.8,11.01763705]
[1748996391523,0.02,2598.9,2598.8,10.76763705]
[1748996392556,0.02,2598.9,2598.8,11.98733597]
[1748996394457,0.02,2598.9,2598.8,18.30933597]
[1748996394664,0.02,2598.9,2598.8,19.54933597]
[1748996395023,0.02,2598.9,2598.8,27.85033597]
[1748996396725,0.02,2598.9,2598.8,26.63063705]
[1748996398044,0.8317,2599.8,2598.9,8.0]
[1748996398246,0.8317,2599.8,2599.2,2.60510092]
[1748996398624,0.8317,2599.8,2598.9,8.0]
[1748996398956,0.8317,2599.8,2599.1,8.0]
[1748996400358,0.8317,2599.8,2599.2,1.654]
[1748996401961,0.8317,2599.8,2598.9,8.0]
[1748996402291,0.7947,2599.4,2599.2,1.654]
[1748996408684,0.7947,2599.4,2599.1,1.654]
[1748996409557,0.7947,2599.4,2599.0,1.654]
[1748996411080,0.55,2599.3,2598.8,8.301]
[1748996411249,0.7534,2599.2,2598.9,1.655]
[1748996411579,1.3034,2599.0,2598.9,1.655]
[1748996413379,0.7534,2598.9,2598.5,1.655]
[1748996414971,0.7034,2598.9,2598.5,1.655]
[1748996415381,0.7034,2598.9,2598.2,2.60510092]
[1748996415576,0.7034,2598.9,2598.3,1.655]
[1748996418163,0.7034,2598.9,2598.0,2.60510092]
[1748996418370,0.7034,2598.9,2598.4,1.655]
[1748996418887,0.8302,2598.8,2598.4,1.655]
[1748996423383,0.8302,2598.8,2598.4,4.26010092]
[1748996423611,0.7825,2599.0,2598.4,4.26010092]
[1748996426188,0.7825,2599.0,2598.4,1.655]
[1748996430431,0.7825,2599.0,2598.4,4.26010092]
[1748996430838,0.7825,2599.0,2598.5,0.05]
[1748996431693,0.7928,2599.6,2598.9,8.0]
[1748996432008,0.7928,2599.6,2599.0,1.653]
[1748996434447,0.7928,2599.6,2599.0,4.25810092]
[1748996434742,0.7928,2599.6,2599.0,1.653]
[1748996435497,0.7928,2599.6,2599.1,8.0]
[1748996436145,0.3604351,2599.7,2599.1,8.0]
[1748996436446,0.3604351,2599.7,2599.4,2.60510092]
[1748996436645,0.3604351,2599.7,2599.3,8.0]
[1748996439050,0.3604351,2599.7,2599.3,8.38234107]
[1748996442481,0.3604351,2599.7,2599.6,10.60510092]
[1748996442618,0.3604351,2599.7,2599.6,12.25710092]
[1748996443521,1.1825351,2599.7,2599.6,1.652]
[1748996445135,1.1825351,2599.7,2599.3,8.3933005]
[1748996445340,1.1825351,2599.7,2599.4,1.652]
[1748996458569,0.8323,2599.6,2599.4,1.652]
[1748996459772,0.3604351,2599.7,2599.4,1.652]
[1748996461505,0.3604351,2599.7,2599.5,1.65]
[1748996463409,0.8322,2599.6,2599.5,1.65]
[1748996463974,0.55,2599.5,2598.9,1.65]
[1748996464167,0.8322,2599.2,2598.9,1.65]
[1748996464514,0.8322,2598.9,2598.4,1.65]
[1748996464715,0.34373009,2598.8,2598.4,1.65]
[1748996464901,0.7818,2598.7,2598.4,1.65]
[1748996467396,0.8308,2598.5,2597.9,1.65]
[1748996475586,0.7901,2598.3,2597.9,1.65]
[1748996475876,0.39452009,2598.2,2597.9,1.65]
[1748996476040,0.7901,2598.3,2597.9,1.65]
[1748996476865,0.7901,2598.3,2597.8,8.301]
[1748996477066,0.7901,2598.3,2597.6,1.651]
[1748996479542,0.8156,2598.1,2597.6,1.651]
[1748996481091,0.8301,2597.9,2597.6,1.651]
[1748996481410,0.8301,2597.7,2597.6,1.651]
[1748996481691,0.55,2597.6,2597.1,1.671]
[1748996481843,0.8301,2597.5,2597.1,1.671]
[1748996482045,0.8301,2597.3,2597.1,1.671]
[1748996484758,0.55,2597.2,2597.1,0.02]
[1748996484968,3.90870092,2597.2,2597.1,0.02]
[1748996485393,3.90870092,2597.2,2596.1,0.02]
[1748996485394,0.7536,2597.0,2596.1,1.671]
[1748996485551,0.7512,2596.7,2596.1,1.671]
[1748996486502,0.7686,2596.9,2596.2,2.67510092]
[1748996487288,0.7686,2597.3,2596.6,2.60510092]
[1748996487489,0.7686,2597.3,2596.7,1.651]
[1748996488848,0.7686,2597.3,2596.8,2.60510092]
[1748996489053,0.8064,2597.5,2596.8,2.60510092]
[1748996490097,0.8064,2597.5,2596.7,1.721]
[1748996490325,0.8064,2597.5,2596.7,1.651]
[1748996493658,0.8064,2597.5,2596.8,2.60510092]
[1748996496165,0.8064,2597.5,2597.0,2.60510092]
[1748996496401,0.7528,2597.7,2597.2,2.60510092]
[1748996496702,0.7528,2597.7,2597.3,1.65]
[1748996499956,0.7941,2598.4,2597.4,2.60510092]
[1748996500259,0.7941,2598.2,2597.4,2.60510092]
[1748996502200,0.7941,2598.2,2597.5,0.07]
[1748996502358,0.7941,2598.2,2597.5,8.07]
[1748996503803,0.7941,2598.2,2597.7,8.0]
[1748996505094,0.7941,2598.2,2597.7,8.38370862]
[1748996505296,0.7941,2598.2,2597.7,0.38370862]
[1748996505499,0.7941,2598.2,2597.5,8.07]
[1748996509903,0.7941,2598.2,2597.4,2.47718582]
[1748996510789,0.7941,2598.2,2597.6,2.60510092]
[1748996513008,0.8164,2598.5,2597.8,2.60510092]
[1748996513204,0.8164,2598.5,2598.0,2.60510092]
[1748996520486,0.8164,2598.5,2597.9,9.649]
[1748996521427,0.8164,2598.5,2598.0,2.60510092]
[1748996523799,0.8164,2598.5,2597.9,9.649]
[1748996526630,0.8164,2598.5,2598.0,2.60510092]
[1748996527133,0.8097,2598.7,2598.4,2.60510092]
[1748996527286,0.8297,2598.9,2598.5,1.647]
[1748996528428,0.8297,2598.9,2598.5,9.647]
[1748996530026,0.02,2598.9,2598.5,9.647]
[1748996530342,0.02,2598.9,2598.7,8.0]
[1748996530830,0.02,2598.9,2598.8,10.60510092]
[1748996531191,0.02,2598.9,2598.8,8.0]
[1748996532310,0.02,2598.9,2598.8,8.3907286]
[1748996534708,0.02,2598.9,2598.8,10.99582952]
[1748996539334,0.8352,2598.9,2598.8,0.3907286]
[1748996539502,0.8352,2598.9,2598.5,1.647]
[1748996540344,0.8152,2598.8,2598.5,1.647]
[1748996540550,0.8152,2598.6,2598.5,1.647]
[1748996541625,0.7811,2598.9,2598.6,8.0]
[1748996542451,0.02,2598.9,2598.6,8.0]
[1748996542653,0.02,2598.9,2598.7,2.60510092]
[1748996543425,0.02,2598.9,2598.8,8.0]
[1748996545262,0.02,2598.9,2598.8,1.647]
[1748996546066,0.8304,2598.9,2598.8,1.647]
[1748996546269,0.8304,2598.9,2598.6,8.0]
[1748996546440,0.8304,2598.9,2598.8,1.647]
[1748996551785,0.02,2598.9,2598.8,1.647]
[1748996553044,0.02,2598.9,2598.8,9.647]
[1748996553247,0.02,2598.9,2598.8,1.647]
[1748996554391,0.02,2598.9,2598.8,9.647]
[1748996561694,0.7508,2599.7,2598.8,13.49492981]
[1748996561854,0.8292,2599.9,2599.5,2.60510092]
[1748996562201,0.8292,2599.9,2599.6,1.645]
[1748996562374,0.8292,2599.9,2599.7,1.645]
[1748996570982,0.36343009,2599.9,2599.7,1.645]
[1748996571183,0.8326,2599.8,2599.7,1.645]
[1748996574818,0.8326,2599.8,2599.2,1.645]
[1748996574819,0.7593,2599.7,2599.2,1.645]
[1748996575021,0.7593,2599.7,2599.1,1.645]
[1748996575325,0.7593,2599.7,2598.4,11.29207458]
[1748996575326,0.7593,2599.5,2599.2,1.645]
[1748996579228,0.7593,2599.5,2598.5,10.60510092]
[1748996579229,0.7593,2599.5,2599.0,1.645]
[1748996579830,2.60510092,2599.4,2599.0,1.645]
[1748996580040,0.8109,2599.3,2599.0,1.645]
[1748996580332,0.753,2599.2,2599.0,1.645]
[1748996582086,0.7582,2599.6,2599.0,1.645]
[1748996586822,0.7582,2599.6,2598.8,8.0]
[1748996587126,0.7582,2599.6,2598.9,1.644]
[1748996588641,2.60510092,2599.2,2598.4,10.33097366]
[1748996588802,1.10331009,2599.1,2598.4,10.33097366]
[1748996590353,0.7532,2598.9,2598.4,9.947]
[1748996591036,0.7532,2598.7,2598.4,1.644]
[1748996591242,2.60510092,2598.6,2598.4,1.644]
[1748996591448,1.03451009,2598.5,2598.4,1.644]
[1748996592646,0.7677,2598.4,2597.9,1.644]
[1748996593014,0.7677,2598.4,2597.4,10.92628191]
[1748996593244,0.7677,2598.4,2597.5,1.644]
[1748996593409,1.1310311,2598.4,2597.5,1.644]
[1748996593827,1.1310311,2598.4,2597.5,2.01913842]
[1748996594633,0.7677,2598.3,2597.5,2.01913842]
[1748996609580,0.8272,2597.9,2597.5,2.01913842]
[1748996609884,0.8272,2597.7,2597.5,2.01913842]
[1748996610476,0.8272,2597.7,2597.1,1.664]
[1748996611474,0.8272,2597.7,2597.1,9.664]
[1748996613341,0.8272,2597.7,2597.1,10.04857691]
[1748996622715,0.8272,2597.7,2597.1,12.65367783]
[1748996623018,0.8097,2598.2,2597.4,8.0]
[1748996623920,0.8097,2598.2,2597.3,0.94636472]
[1748996626600,0.8097,2598.2,2597.1,4.65367783]
[1748996627149,0.8193,2598.0,2597.1,2.04857691]
[1748996627997,0.8193,2598.0,2597.1,10.04857691]
[1748996628196,2.60510092,2597.7,2597.1,2.04857691]
[1748996628413,0.8131,2597.6,2597.1,2.04857691]
[1748996628990,0.8131,2597.6,2597.1,1.664]
[1748996629333,2.60510092,2597.5,2597.1,1.664]
[1748996629640,0.7827,2597.4,2597.1,1.664]
[1748996629851,0.55,2597.7,2597.1,1.664]
[1748996629852,0.7827,2597.2,2597.1,1.664]
[1748996629991,1.3327,2597.2,2597.1,0.02]
[1748996634036,0.7827,2597.2,2597.1,0.02]
[1748996641343,9.67570092,2597.8,2597.1,0.02]
[1748996641543,0.7646,2597.7,2597.2,1.644]
[1748996641964,2.60510092,2598.4,2597.2,1.644]
[1748996642181,0.7646,2598.3,2597.2,1.644]
[1748996642384,0.7646,2598.3,2597.5,2.60510092]
[1748996643454,0.7646,2598.3,2597.4,8.0]
[1748996643649,0.7646,2598.3,2597.2,12.55810092]
[1748996648870,0.6491,2598.3,2597.2,12.55810092]
[1748996649073,0.6491,2598.3,2597.3,0.1155]
[1748996650134,3.15510092,2598.9,2597.6,2.60510092]
[1748996650342,2.60510092,2599.1,2598.1,8.0]
[1748996650524,4.69,2599.9,2597.2,11.17202221]
[1748996650525,2.60510092,2599.3,2598.2,4.24810092]
[1748996650845,2.60510092,2599.3,2598.3,1.7585]
[1748996652018,0.7701,2599.2,2598.3,1.7585]
[1748996652215,0.7701,2599.2,2598.4,2.60510092]
[1748996652441,0.7701,2599.2,2598.5,8.0]
[1748996652604,0.7701,2599.2,2598.3,10.14160964]
[1748996654303,0.7701,2599.2,2598.5,8.0]
[1748996656109,0.7701,2599.2,2598.3,2.14160964]
[1748996656314,0.7909,2599.1,2598.3,2.02610964]
[1748996660319,3.40250092,2599.0,2598.3,2.02610964]
[1748996660556,0.7974,2599.0,2598.3,2.02610964]
[1748996664258,0.7974,2599.0,2598.5,2.60510092]
[1748996666264,0.7974,2599.0,2598.4,0.1155]
[1748996668664,0.7974,2599.0,2598.4,8.1155]
[1748996674876,0.7974,2599.0,2598.3,2.02610964]
[1748996679633,0.7974,2599.0,2598.4,8.0]
[1748996679855,0.7974,2599.0,2598.6,8.0]
[1748996681065,0.7974,2599.0,2598.6,8.30088471]
[1748996684573,0.7974,2599.0,2598.4,8.0]
[1748996686572,0.7974,2599.0,2598.4,8.29560034]
[1748996687470,0.7974,2599.0,2598.5,1.641]
[1748996687680,0.7974,2599.0,2598.5,9.641]
[1748996688167,0.7974,2599.0,2598.5,1.641]
[1748996691683,6.299,2599.7,2598.5,4.36160092]
[1748996691684,0.8286,2599.7,2598.5,4.36160092]
[1748996691855,0.8286,2599.7,2598.8,8.0]
[1748996695260,0.8286,2599.7,2598.5,4.36160092]
[1748996696160,0.8286,2599.7,2598.6,8.0]
[1748996697509,2.60510092,2599.6,2598.6,8.0]
[1748996697716,0.7765,2599.5,2598.6,8.0]
[1748996698509,0.7765,2599.3,2598.4,1.51462255]
[1748996698719,2.60510092,2599.2,2598.7,1.641]
[1748996698918,0.7765,2599.1,2598.7,1.641]
[1748996701430,2.60510092,2598.9,2598.3,0.38024596]
[1748996701594,0.7631,2598.7,2598.3,0.38024596]
[1748996701943,0.7631,2598.7,2598.2,1.641]
[1748996702245,0.7631,2598.6,2598.2,1.641]
[1748996702747,0.7631,2598.6,2598.2,2.03089238]
[1748996705023,0.7631,2598.6,2598.2,1.641]
[1748996705228,0.55,2599.1,2597.7,1.91124865]
[1748996705229,0.8174,2598.4,2597.7,1.91124865]
[1748996705541,0.8174,2598.2,2597.7,1.64]
[1748996705904,0.8174,2598.2,2597.7,2.29862239]
[1748996707203,0.8174,2598.2,2597.7,2.02501312]
[1748996708020,0.8174,2598.2,2597.5,1.641]
[1748996708858,0.8061,2598.0,2597.5,2.03120301]
[1748996709067,0.8061,2597.9,2597.5,2.03120301]
[1748996712589,0.8061,2597.9,2597.5,1.641]
[1748996713253,3.41120092,2597.9,2597.5,1.641]
[1748996713452,0.8059,2597.6,2597.0,1.641]
[1748996713694,0.8059,2597.4,2597.0,1.641]
[1748996721575,2.60510092,2598.5,2597.3,2.60510092]
[1748996721780,0.8077,2598.4,2597.3,2.60510092]
[1748996721974,0.8077,2598.2,2597.3,2.60510092]
[1748996724213,0.8077,2598.2,2597.2,8.0]
[1748996724801,3.41280092,2598.2,2597.2,8.0]
[1748996725020,0.7712,2598.1,2597.2,8.0]
[1748996727141,0.7712,2598.1,2597.5,2.60510092]
[1748996727344,0.7712,2598.1,2597.6,1.641]
[1748996730345,0.8068,2598.6,2597.8,8.0]
[1748996733149,0.8068,2598.6,2597.6,1.641]
[1748996733351,0.8068,2598.6,2597.6,9.641]
[1748996734548,2.60510092,2598.3,2597.6,1.641]
[1748996734846,0.754,2598.2,2597.6,1.641]
[1748996736552,0.8096,2598.0,2597.6,1.641]
[1748996746319,0.7506,2598.5,2597.9,8.0]
[1748996746520,0.7506,2598.5,2598.1,8.0]
[1748996746766,0.7506,2598.8,2598.2,4.24610092]
[1748996747075,0.02,2598.9,2598.4,2.60510092]
[1748996747267,0.02,2598.9,2598.6,2.60510092]
[1748996747553,0.02,2598.9,2598.5,0.1155]
[1748996748117,0.02,2598.9,2598.5,8.1155]
[1748996751076,0.02,2598.9,2598.5,8.0]
[1748996752293,0.8048,2598.8,2598.2,1.641]
[1748996754228,0.8048,2598.8,2598.3,8.0]
[1748996760842,0.02,2598.9,2598.4,0.1155]
[1748996761036,0.02,2598.9,2598.5,8.0]
[1748996761238,0.02,2598.9,2598.3,8.0]
[1748996763153,0.02,2598.9,2598.2,1.641]
[1748996763154,0.8058,2598.8,2598.2,1.641]
[1748996764589,0.8058,2598.8,2598.2,4.24610092]
[1748996764789,0.8058,2598.8,2598.5,8.0]
[1748996767664,0.8058,2598.8,2598.3,8.0]
[1748996768470,0.02,2598.9,2598.5,8.0]
[1748996768888,0.02,2598.9,2598.7,8.0]
[1748996769059,0.02,2598.9,2598.8,1.64]
[1748996769783,0.02,2598.9,2598.8,1.89694996]
[1748996770602,0.7526,2599.8,2599.0,2.60510092]
[1748996770906,0.7526,2599.8,2599.1,8.0]
[1748996771088,0.7526,2599.8,2598.9,8.0]
[1748996771459,0.7526,2599.8,2599.0,2.60510092]
[1748996771755,0.7526,2599.8,2599.1,8.0]
[1748996773786,0.7526,2599.8,2598.9,8.0]
[1748996775296,0.7526,2599.8,2599.1,8.0]
[1748996779482,0.7526,2599.8,2598.9,0.3849]
[1748996779718,0.7526,2599.8,2599.0,1.639]
[1748996779719,0.7872,2599.7,2599.0,1.639]
[1748996780261,0.7872,2599.7,2599.1,1.639]
[1748996780807,0.7872,2599.7,2598.8,1.24]
[1748996781009,0.7872,2599.5,2598.9,1.639]
[1748996783102,0.7872,2599.5,2598.9,9.639]
[1748996783648,0.7872,2599.5,2598.9,1.639]
[1748996786349,0.8046,2599.4,2599.0,1.639]
[1748996786510,0.8046,2599.4,2598.9,1.639]
[1748996789887,3.41950092,2599.3,2598.9,1.639]
[1748996790177,0.8144,2599.0,2598.9,1.639]
[1748996792732,0.8144,2599.0,2598.1,8.0]
[1748996792931,0.762,2598.8,2598.2,1.639]
[1748996800801,0.762,2598.8,2598.1,8.0]
[1748996801002,0.8026,2598.6,2598.2,1.639]
[1748996801316,1.14337009,2598.6,2598.2,1.639]
[1748996801473,0.8026,2598.5,2598.2,1.639]
[1748996802622,0.7791,2598.2,2597.5,1.639]
[1748996802840,0.7791,2598.2,2597.6,0.71]
[1748996802980,2.60510092,2598.1,2597.5,1.639]
[1748996803335,0.7791,2598.0,2597.5,1.639]
[1748996803880,0.7935,2597.9,2597.3,1.639]
[1748996816410,0.7935,2597.9,2597.3,9.639]
[1748996819250,0.7935,2597.9,2597.3,1.639]
[1748996822619,0.7935,2597.9,2597.3,9.639]
[1748996825511,0.7935,2597.9,2597.5,8.0]
[1748996825807,0.7577,2598.5,2597.5,8.0]
[1748996826973,0.774,2598.3,2597.3,9.639]
[1748996829085,0.774,2598.3,2597.5,8.0]
[1748996830203,0.774,2598.3,2597.7,8.0]
[1748996830435,0.774,2598.3,2597.3,1.639]
[1748996830436,0.774,2598.3,2597.9,8.0]
[1748996830585,0.774,2598.3,2598.0,1.639]
[1748996832274,0.7506,2598.1,2597.5,1.639]
[1748996832469,0.7506,2597.9,2597.5,1.639]
[1748996832924,2.60510092,2597.7,2597.1,0.02]
[1748996833252,0.7506,2597.2,2597.1,0.02]
[1748996833531,0.7506,2597.2,2596.5,1.639]
[1748996833726,0.7897,2596.9,2596.5,1.639]
[1748996834892,0.7897,2596.9,2596.5,2.01446283]
[1748996835421,0.8288,2597.1,2596.5,2.03446283]
[1748996845130,0.8288,2597.1,2596.5,10.01446283]
[1748996845290,0.8288,2597.1,2596.5,2.01446283]
[1748996845698,0.8288,2597.1,2596.5,0.37546283]
[1748996846001,0.8288,2597.1,2596.6,1.639]
[1748996847233,0.8288,2597.1,2596.3,0.02]
[1748996847430,0.8288,2597.1,2596.7,1.639]
[1748996849245,0.8288,2597.1,2596.8,1.639]
[1748996849666,0.8288,2597.1,2596.3,1.26]
[1748996849812,0.8288,2597.1,2596.4,1.639]
[1748996855218,0.8288,2597.1,2596.5,2.93218051]
[1748996855418,0.8288,2597.1,2596.5,2.88714581]
[1748996857362,0.8288,2597.1,2596.6,8.0]
[1748996858324,0.8288,2597.1,2596.5,2.88714581]
[1748996858325,0.8288,2597.1,2596.4,9.639]
[1748996858663,0.8288,2597.1,2596.4,1.639]
[1748996860833,0.8288,2597.1,2596.4,9.639]
[1748996863668,0.8288,2597.1,2596.4,1.639]
[1748996869439,0.7729,2597.0,2596.4,1.639]
[1748996873768,2.93218051,2596.7,2596.4,1.639]
[1748996873996,0.809,2596.6,2596.4,1.639]
[1748996874212,0.37411805,2596.5,2596.4,1.639]
[1748996874389,1.18311805,2596.5,2596.4,1.639]
[1748996874694,0.37411805,2596.5,2596.1,0.02]
[1748996874864,0.809,2596.4,2596.1,1.659]
[1748996876202,3.30629856,2596.5,2596.1,1.659]
[1748996876203,2.93218051,2596.3,2596.1,1.659]
[1748996876518,1.07521805,2596.2,2596.1,1.659]
[1748996876722,1.07521805,2596.2,2595.6,9.945]
[1748996876884,0.7675,2596.0,2595.6,9.945]
[1748996877283,0.7675,2596.0,2595.6,1.639]
[1748996878644,0.7675,2596.0,2595.6,4.57118051]
[1748996879055,0.7675,2596.0,2595.7,8.0]
[1748996879272,0.7619,2596.9,2595.7,8.0]
[1748996879456,0.7619,2596.7,2595.7,8.0]
[1748996880038,0.7619,2596.7,2596.1,8.0]
[1748996880201,0.7619,2596.7,2596.2,1.64]
[1748996880826,0.7619,2596.7,2596.3,8.0]
[1748996881028,0.7619,2596.7,2596.2,1.64]
[1748996894040,0.7619,2596.7,2596.2,9.64]
[1748996894459,0.7619,2596.7,2596.2,1.64]
[1748996895970,0.7619,2596.7,2596.2,9.64]
[1748996896497,0.7619,2596.7,2596.4,8.0]
[1748996896672,0.8329,2597.4,2596.6,8.0]
[1748996897596,0.8329,2597.4,2596.3,2.93218051]
[1748996897782,2.93218051,2597.4,2596.7,1.639]
[1748996897981,0.8329,2597.2,2596.7,1.639]
[1748996900975,0.7527,2597.1,2596.1,8.0]
[1748996901176,0.7527,2597.1,2596.2,1.639]
[1748996901376,3.48218051,2597.0,2596.2,1.639]
[1748996901583,0.7527,2596.8,2596.2,1.639]
[1748996906686,2.93218051,2596.6,2596.2,1.639]
[1748996906876,0.8165,2596.5,2596.2,1.639]
[1748996910585,0.7828,2596.7,2596.2,1.639]
[1748996915952,0.7593,2597.1,2596.6,8.0]
[1748996916170,0.7593,2597.1,2596.8,2.93218051]
[1748996916361,0.7593,2597.1,2596.9,1.639]
[1748996918617,0.7593,2597.1,2596.9,2.02973171]
[1748996920427,0.7871,2597.7,2596.9,2.02973171]